Cogmind - Beta 14 @@@ ROGUE MODE // 2025.01.04 @ 19:26:51 Player: luckinvolved Result: Destroyed by G-47 Trooper with Particle Gun Performance ------------- Evolutions (2) 1000 Regions Visited (6) 1200 Robots Destroyed (168) 840 Value Destroyed (5149) 5149 Prototype IDs (7) 140 Alien Tech Used (0) 0 Bonus (2182) 2182 TOTAL SCORE: 10511 Bonus ------- High Alert Combat Kills 982 Entered Garrisons 200 Used RIF Installer 1000 Cogmind --------- Core Integrity 0/550 Matter 245/300 Energy 265/265 System Corruption 0% Temperature Cool (9) Movement Rolling (160) Ox5 Location -8/Materials Parts ------- > --- POWER (1) -------- Reinforced Ion Engine > --- PROPULSION (4) --- Advanced Treads Wheel Armored Wheel > --- UTILITY (3) ------ Huge Storage Unit Hardened Heavy Armor Plating > --- WEAPON (3) ------- Improved Assault Rifle > --- INVENTORY (25) --- Improved Ion Engine Improved Ion Engine Heavy Ion Engine Micro Nuclear Core Light Angular Momentum Engine Light Treads Light Treads Light Treads Light Treads Light Treads Light Treads Light Treads Light Treads Machine Analyzer Improved Signal Interpreter Advanced Targeting Computer Light Armor Plating Hacking Suite Relay Coupler [NC] (22) Relay Coupler [Grunt] (28) Relay Coupler [Grunt] (21) Relay Coupler [Duelist] (26) Relay Coupler [Hunter] (12) System Restoration Module Heavy Flail Peak State ------------ > --- POWER ------------ Heavy Ion Engine > --- PROPULSION ------- Light Treads Light Treads Light Treads Armored Treads > --- UTILITY ---------- Huge Storage Unit Hardened Heavy Armor Plating > --- WEAPON ----------- Improved Assault Rifle Improved Assault Rifle Improved Assault Rifle > --- INVENTORY -------- Micro Nuclear Core Light Treads Light Treads Light Treads Light Treads Light Treads Armored Wheel Disposable Heat Sink Huge Storage Unit Structural Scanner Machine Analyzer Improved Signal Interpreter Medium Armor Plating Hardened Heavy Armor Plating Hardened Heavy Armor Plating Hardened Heavy Armor Plating Beam Rifle Heavy Particle Cannon Improved Assault Rifle Improved Assault Rifle Rocket Launcher Heavy Flail [Rating: 33] Favorites ----------- Power Light Ion Engine Engine Light Ion Engine Propulsion Light Treads Treads Light Treads Wheel Wheel Flight Unit Improved VTOL Module Utility Huge Storage Unit Device Disposable Heat Sink Storage Huge Storage Unit Hackware Relay Coupler [Sentry] Protection Hardened Heavy Armor Plating Weapon Improved Assault Rifle Energy Gun Medium Laser Energy Cannon Heavy Particle Cannon Ballistic Gun Improved Assault Rifle Ballistic Cannon Light Cannon Launcher Rocket Launcher Impact Weapon Heavy Flail Special Melee Weapon Datajack Build | -11 -10 -10 -9 -8 -8 -8 ------- Run | Yrd Mat Min Mat Mat Gar Mat Slots Evolved 4 | . . . 2 2 . . Power . | . . . . . . . Propulsion 2 | . . . 1 1 . . Utility 1 | . . . 1 . . . Weapon 1 | . . . . 1 . . Parts Attached 131 | 6 18 6 14 41 24 22 Power 13 | 1 3 1 4 3 1 . Engine 13 | 1 3 1 4 3 1 . Core . | . . . . . . . Reactor . | . . . . . . . Propulsion 43 | 2 5 2 3 17 4 10 Treads 40 | 2 5 2 3 16 4 8 Leg . | . . . . . . . Wheel 2 | . . . . . . 2 Hover . | . . . . . . . Flight 1 | . . . . 1 . . Utility 30 | 1 4 1 3 9 5 7 Device 10 | . 1 1 1 4 1 2 Storage 6 | 1 3 . . 1 1 . Processor . | . . . . . . . Hackware 1 | . . . . . . 1 Protection 13 | . . . 2 4 3 4 Artifact . | . . . . . . . Weapon 45 | 2 6 2 4 12 14 5 Energy Gun 5 | 1 1 1 1 . 1 . Energy Cannon 2 | . . . . . 2 . Ballistic Gun 27 | 1 4 1 3 8 6 4 Ballistic Cannon 1 | . 1 . . . . . Launcher 2 | . . . . 1 1 . Special Weapon . | . . . . . . . Impact Weapon 7 | . . . . 3 4 . Slashing Weapon . | . . . . . . . Piercing Weapon . | . . . . . . . Special Melee Weapon 1 | . . . . . . 1 Unidentified Prototypes 5 | . . . 3 2 . . Parts Lost 26 | . 4 . 1 6 5 10 Power 2 | . 2 . . . . . Propulsion 9 | . 1 . . 3 1 4 Utility 3 | . . . 1 . 1 1 Weapon 12 | . 1 . . 3 3 5 Highest Loss Streak 6 | . 1 . 1 6 2 5 To Critical Strikes 1 | . . . . 1 . . Average Slot Usage (%) 92 | . 85 100 99 94 93 84 Engine 10 | . 14 14 11 9 9 9 Treads 32 | . 27 28 33 35 35 34 Device 4 | . . 14 11 4 3 . Storage 10 | . 14 14 11 9 9 9 Protection 6 | . . . 10 8 9 7 Energy Gun 4 | . 7 19 4 . 4 1 Energy Cannon 1 | . . . . . 3 5 Ballistic Gun 19 | . 20 8 17 26 16 15 Peak Build Rating 33 | 6 10 16 21 33 29 30 Average Rating 20 | 5 7 13 18 28 27 26 On Entrance 16 | . 6 10 16 21 30 29 Naked Turns . | . . . . . . . Heaviest Build 123 | 11 88 89 100 117 122 123 Greatest Support 82 | 40 40 40 60 80 80 82 Greatest Overweight (x) 5 | 2 2 2 1 1 1 5 Average Overweight (x) 1 | . . 2 1 1 1 1 Largest Inventory Capacity 25 | 8 25 25 25 25 25 25 Average Capacity 23 | 7 20 25 25 25 25 25 Most Carried 25 | 8 25 25 25 25 25 25 Average Carried 22 | 5 18 24 24 24 24 23 Final Capacity 25 | 8 25 25 25 25 25 25 Final Carried 25 | 8 25 25 25 25 25 25 Class Distribution -------------------- 42% | Mutant 22% | Tank 14% | Scavenger-Tank 12% | Scavenger-Mutant 5% | Scavenger-Gunner Dominant Class ---------------- Mutant | -10/Materials Mutant | -10/Mines Mutant | -9/Materials Tank | -8/Materials Scavenger-Tank | -8/Garrison Scavenger-Tank | -8/Materials Resources | -11 -10 -10 -9 -8 -8 -8 ----------- Run | Yrd Mat Min Mat Mat Gar Mat Matter Collected 4181 | 273 723 100 513 1451 663 458 Remotely 19 | . 19 . . . . . Salvage Created 5968 | 156 1235 195 628 2233 794 727 Parts 377 | 7 80 17 44 133 61 35 Haulers Intercepted 7 | . 1 . 2 4 . . Recyclers Shooed 3 | . 1 . 1 1 . . Parts Field Recycled . | . . . . . . . Retrieved Matter . | . . . . . . . Parts Self-Destructed . | . . . . . . . Prevented . | . . . . . . . Kills | -11 -10 -10 -9 -8 -8 -8 ------- Run | Yrd Mat Min Mat Mat Gar Mat Combat Hostiles Destroyed 123 | . 20 8 13 42 28 12 Guns 116 | . 20 8 13 42 22 11 Cannons 5 | . . . . . 4 1 AOE 2 | . . . . . 2 . Classes Destroyed 14 | 3 7 1 . 1 1 1 Worker 8 | 2 2 1 1 . . 2 Builder 5 | . 2 1 . 1 . 1 Tunneler 3 | 2 . . . 1 . . Hauler 7 | . 1 . 2 4 . . Recycler 12 | 1 5 . 2 4 . . Mechanic 2 | . 1 . . . . 1 Operator 2 | . 2 . . . . . Watcher 6 | . 2 . 2 2 . . Swarmer 42 | . 6 6 4 11 15 . Grunt 55 | . 14 . 6 23 6 6 Brawler 3 | . . . . 1 1 1 Sentry 21 | . . 2 3 7 5 4 Demolisher 1 | . . . . . 1 . Hunter 1 | . . . . . . 1 Best Kill Streak 6 | 5 4 3 6 4 3 5 Combat Bots Only 6 | . 2 3 6 4 3 2 Max Kills in Single Turn 2 | 1 1 2 1 2 2 2 Gunslinging 1 | . . 1 . 1 1 . Exploded 1 | . . . . . 1 . Melee . | . . . . . . . Uniques/NPCs Destroyed . | . . . . . . . Combat | -11 -10 -10 -9 -8 -8 -8 -------- Run | Yrd Mat Min Mat Mat Gar Mat Hostile Shots Fired 834 | . 145 39 47 244 131 228 Missed 212 | . 36 7 24 55 40 50 Damage Taken 8763 | . 1179 286 342 2762 1436 2758 Core 805 | . 194 29 21 267 101 193 Absorbed by Shields 149 | . . . . 100 49 . Regen/Repaired (Parts) 89 | . 89 . . . . . Core Remaining (%) 68 | 100 . 10 94 . . . Volleys Fired 432 | 13 122 13 45 127 57 55 Largest 3 | 2 2 2 2 3 3 3 Hottest 154 | 70 70 115 89 79 154 154 Shots Fired 1032 | 26 244 26 90 359 159 128 Gun 992 | 26 244 26 90 356 141 109 Cannon 35 | . . . . . 16 19 Launcher 5 | . . . . 3 2 . Special . | . . . . . . . Kinetic 901 | 13 201 8 87 356 132 104 Thermal 126 | 13 43 18 3 . 25 24 Explosive 5 | . . . . 3 2 . Electromagnetic . | . . . . . . . Robot Hit Streak 26 | 6 13 5 7 26 18 22 Robot Miss Streak 5 | 2 4 2 5 5 4 4 Penetration Max 1 | . . . . . . 1 Secondary Targets 25 | . 3 4 1 8 8 1 Max Gunslinging Chain 1 | . 1 1 1 1 1 1 Shots Hit Robots 728 | 15 162 21 72 259 97 102 Core Hits 298 | 7 59 13 37 103 47 32 Critical Kills . | . . . . . . . Critical Parts Destroyed 4 | . 1 . 1 2 . . Critical Strikes 12 | 1 6 1 1 2 1 . Burn 7 | 1 5 1 . . . . Destroy 5 | . 1 . 1 2 1 . Melee Attacks 16 | . . . . 7 7 2 Impact 14 | . . . . 7 7 . Slashing . | . . . . . . . Piercing . | . . . . . . . Sneak Attacks . | . . . . . . . Combat Hostiles . | . . . . . . . Follow-up Attacks . | . . . . . . . Damage Inflicted 11500 | 153 2050 346 1116 4276 1782 1777 Guns 10611 | 153 2050 346 1116 4045 1449 1452 Cannons 525 | . . . . . 200 325 Explosions 364 | . . . . 231 133 . Melee . | . . . . . . . Ramming . | . . . . . . . Kinetic 9843 | 53 1740 147 1087 4045 1392 1379 Thermal 1293 | 100 310 199 29 . 257 398 Explosive 364 | . . . . 231 133 . Electromagnetic . | . . . . . . . Impact . | . . . . . . . Slashing . | . . . . . . . Piercing . | . . . . . . . Highest Corruption 6 | . . . 4 6 . . Average Corruption 4 | . . . 4 5 . . Corruption Purged 6 | . . . . 6 . . Corruption Blocked . | . . . . . . . Effects 19 | . . . 5 14 . . Message Errors 3 | . . . . 3 . . Heat Flow Errors 4 | . . . 1 3 . . Energy Discharges 3 | . . . 1 2 . . Parts Rejected 1 | . . . . 1 . . Data Loss (minor) 3 | . . . 2 1 . . Data Loss (major) 1 | . . . 1 . . . Misfires 1 | . . . . 1 . . Alerts 1 | . . . . 1 . . Weapon Failures 2 | . . . . 2 . . Overload Shots . | . . . . . . . Overflow Damage 42 | . . . . . 42 . Projectiles . | . . . . . . . Explosions 42 | . . . . . 42 . Melee . | . . . . . . . Knockbacks . | . . . . . . . Impact . | . . . . . . . Kinetic . | . . . . . . . Secondary . | . . . . . . . Self-Inflicted Damage 289 | . . . 72 62 155 . Shots 4 | . . . 1 2 1 . Rammed . | . . . . . . . Targets Rammed . | . . . . . . . Kicked . | . . . . . . . Crushed . | . . . . . . . Highest Temperature 393 | 130 235 48 160 393 345 357 Average Temperature 90 | 48 56 18 40 68 102 145 Received Heat Transfer 3338 | . 516 27 150 1301 255 1089 Effects 9 | . . . . 5 1 3 Energy Bleed 4 | . . . . 2 1 1 Interference 5 | . . . . 3 . 2 Siege Activations . | . . . . . . . Robots Corrupted . | . . . . . . . Combat Hostiles . | . . . . . . . Parts Fried . | . . . . . . . Impact Corruptions . | . . . . . . . Robots Melted . | . . . . . . . Combat Hostiles . | . . . . . . . Parts Melted 4 | . 2 2 . . . . Heat Transferred 3441 | 370 1295 592 74 . 444 666 Parts Sabotaged . | . . . . . . . Parts Stolen . | . . . . . . . Parts Stripped . | . . . . . . . Power Chain Reactions . | . . . . . . . Alert | -11 -10 -10 -9 -8 -8 -8 ------- Run | Yrd Mat Min Mat Mat Gar Mat Peak Influence 1622 | 25 371 171 312 807 1622 1054 Initial 790 | . 16 96 50 131 487 790 Average 479 | 12 202 131 119 492 1072 926 Maximum Alert Level 5 | . 1 . 1 3 5 3 Low Security (%) 30 | 100 31 100 72 10 . . Level 1 25 | . 68 . 27 18 . . Level 2 13 | . . . . 48 9 . Level 3 21 | . . . . 21 38 100 Level 4 9 | . . . . . 50 . Level 5 . | . . . . . . . High Security . | . . . . . . . Max Security . | . . . . . . . Squads Dispatched 15 | . 5 . . 5 . 5 Investigation 7 | . 4 . . 2 . 1 Extermination . | . . . . . . . Reinforcement 5 | . 1 . . 2 . 2 Assault 3 | . . . . 1 . 2 Garrison . | . . . . . . . Intercept . | . . . . . . . Searches Triggered . | . . . . . . . Construction Impeded . | . . . . . . . Haulers Reinforced . | . . . . . . . Active Scanning Responses . | . . . . . . . Cargo Convoy Interrupts . | . . . . . . . Stealth | -11 -10 -10 -9 -8 -8 -8 --------- Run | Yrd Mat Min Mat Mat Gar Mat Distress Signals 18 | . 3 . 4 6 . 5 Communications Jammed . | . . . . . . . Distress Signals . | . . . . . . . Times Spotted 200 | . 40 8 24 65 30 33 Peak Tracking Total 11 | . 6 3 6 6 3 11 Tactical Retreats 9 | . 3 . 2 . . 4 Traps | -11 -10 -10 -9 -8 -8 -8 ------- Run | Yrd Mat Min Mat Mat Gar Mat Traps Triggered 11 | . 2 . . 1 8 . Indirectly . | . . . . . . . Trap Hack Attempts . | . . . . . . . Triggered . | . . . . . . . Disarmed . | . . . . . . . Reprogrammed . | . . . . . . . Reused . | . . . . . . . Traps Extracted . | . . . . . . . Installed . | . . . . . . . Triggered . | . . . . . . . Machines | -11 -10 -10 -9 -8 -8 -8 ---------- Run | Yrd Mat Min Mat Mat Gar Mat Machines Disabled 14 | . 2 . 5 1 5 1 Max in Single Turn 2 | . 1 . 2 1 2 1 Garrison Relay 4 | . . . . . 4 . Phase Generator 1 | . . . . . 1 . Machines Repaired . | . . . . . . . Machines Dismantled . | . . . . . . . Machines Sabotaged . | . . . . . . . Overloaded Fab Kills . | . . . . . . . Hacking | -11 -10 -10 -9 -8 -8 -8 --------- Run | Yrd Mat Min Mat Mat Gar Mat Machines Accessed 22 | . 7 . 3 8 2 2 Terminals 17 | . 4 . 3 7 2 1 Fabricators . | . . . . . . . Repair Stations 1 | . 1 . . . . . Recycling Units 2 | . 2 . . . . . Scanalyzers 1 | . . . . . . 1 Garrison Access 1 | . . . . 1 . . Total Hacks 74 | . 19 . 10 28 3 14 Successful 35 | . 8 . 5 11 1 10 Failed 39 | . 11 . 5 17 2 4 Catastrophic 9 | . . . 2 5 1 1 Database Lockouts . | . . . . . . . Manual 52 | . 14 . 7 26 . 5 Terminals 58 | . 13 . 10 27 3 5 Fabricators . | . . . . . . . Repair Stations 3 | . 3 . . . . . Recycling Units 3 | . 3 . . . . . Scanalyzers 9 | . . . . . . 9 Garrison Access 1 | . . . . 1 . . Terminal Hacks 8 | . 1 . 3 3 1 . Part Schematic 1 | . 1 . . . . . Prototype ID Bank 1 | . . . . 1 . . Emergency Access Points 1 | . . . . . 1 . Terminal Index 2 | . . . 1 1 . . Garrison Index 1 | . . . . 1 . . Alert Level 1 | . . . 1 . . . Dispatch Records 1 | . . . 1 . . . Fabricator Hacks . | . . . . . . . Repair Station Hacks 2 | . 2 . . . . . Scan Component 1 | . 1 . . . . . Repair 1 | . 1 . . . . . Recycling Unit Hacks 2 | . 2 . . . . . Retrieve Components 2 | . 2 . . . . . Scanalyzer 9 | . . . . . . 9 Insert Component 4 | . . . . . . 4 Analyze 5 | . . . . . . 5 Garrison Access Hacks 1 | . . . . 1 . . Unlock Access 1 | . . . . 1 . . Unauthorized Hacks 13 | . 3 . 2 7 . 1 Terminals 12 | . 2 . 2 7 . 1 Botnet 12 | . 2 . 2 7 . 1 Fabricators . | . . . . . . . Repair Stations . | . . . . . . . Recycling Units 1 | . 1 . . . . . Tunnel 1 | . 1 . . . . . Scanalyzers . | . . . . . . . Garrison Access . | . . . . . . . Data Cores Recovered 1 | . 1 . . . . . Used . | . . . . . . . Hacking Detections 19 | . 5 . 3 7 2 2 Full Trace Events 10 | . 4 . 1 3 1 1 Feedback Events . | . . . . . . . Feedback Blocked . | . . . . . . . Robot Schematics Acquired . | . . . . . . . Robots Built . | . . . . . . . Authchips . | . . . . . . . Time . | . . . . . . . Total Robot Build Rating . | . . . . . . . Part Schematics Acquired 5 | . 1 . . . . 4 Parts Built . | . . . . . . . Authchips . | . . . . . . . Time . | . . . . . . . Total Part Build Rating . | . . . . . . . Parts Repaired 1 | . 1 . . . . . Time 26 | . 26 . . . . . Parts Recycled . | . . . . . . . Recycled Matter . | . . . . . . . Retrieved Matter . | . . . . . . . Retrieved Components 9 | . 9 . . . . . Parts Scanalyzed 4 | . . . . . . 4 Part Schematics Acquired 4 | . . . . . . 4 Parts Damaged . | . . . . . . . Bothacking | -11 -10 -10 -9 -8 -8 -8 ------------ Run | Yrd Mat Min Mat Mat Gar Mat Used RIF Installer 2 | . . . . . 2 . Command Fork 1 | . . . . . 1 . Robots Hacked 2 | . . . . . . 2 Non-combat . | . . . . . . . Combat 2 | . . . . . . 2 Robot Hacks Applied 2 | . . . . . . 2 reboot_system 1 | . . . . . . 1 formatsys_high 1 | . . . . . . 1 Relay Couplers Released 17 | . . . . . 17 . Machine Destruction 17 | . . . . . 17 . Attached 1 | . . . . . . 1 Fabnet Peak Effective % . | . . . . . . . Robots Rewired . | . . . . . . . Allies Hacked . | . . . . . . . Hacks Repelled . | . . . . . . . Allies | -11 -10 -10 -9 -8 -8 -8 -------- Run | Yrd Mat Min Mat Mat Gar Mat Total Allies 1 | . . . . . . 1 Largest Group 1 | . . . . . . 1 Highest-Rated Group 15 | . . . . . . 15 Highest-Rated Ally 15 | . . . . . . 15 Total Orders . | . . . . . . . Ally Attacks 1 | . . . . . . 1 Total Damage 27 | . . . . . . 27 Kills . | . . . . . . . Allies Corrupted . | . . . . . . . Allies Melted . | . . . . . . . Intel | -11 -10 -10 -9 -8 -8 -8 ------- Run | Yrd Mat Min Mat Mat Gar Mat Robot Analysis Total . | . . . . . . . Derelict Logs Recovered . | . . . . . . . Drone Launches . | . . . . . . . Drone Recoveries . | . . . . . . . Exploration | -11 -10 -10 -9 -8 -8 -8 ------------- Run | Yrd Mat Min Mat Mat Gar Mat Turns Passed 9299 | 190 2242 567 1523 2165 1804 808 Spaces Moved 2997 | 87 716 161 510 648 639 236 Core 9 | 9 . . . . . . Treads 2961 | 78 716 161 510 648 639 209 Legs . | . . . . . . . Wheels 27 | . . . . . . 27 Hover . | . . . . . . . Flight . | . . . . . . . Fastest Speed 50 | 50 160 320 240 240 240 160 Average Speed 240 | 155 235 320 240 240 240 230 Slowest Speed 320 | 160 320 320 240 242 240 320 Overloaded Moves . | . . . . . . . Propulsion Burnouts . | . . . . . . . Robots Hopped . | . . . . . . . Cave-ins Triggered . | . . . . . . . Exploration Rate (%) 47 | 4 91 48 37 71 59 23 Regions Visited 6 Branch Regions 1 Pre-discovered Areas 2 | . 1 1 . . . . Known Exits Taken 1 | . . . . 1 . . Unknown Exits Taken 4 | 1 1 1 1 . . . Scrap Searched . | . . . . . . . Spaces Dug 9 | . . . . 7 2 . Terrain Destroyed 154 | . . . 22 30 96 6 Melee 9 | . . . . 7 2 . Projectile 6 | . . . . . . 6 AOE 139 | . . . 22 23 94 . Terrain Rammed . | . . . . . . . Walls Destroyed . | . . . . . . . Machines Disabled . | . . . . . . . Actions | -11 -10 -10 -9 -8 -8 -8 --------- Run | Yrd Mat Min Mat Mat Gar Mat Total 4206 | 115 1035 189 727 976 780 384 Wait 402 | 2 131 2 117 90 11 49 Move 2992 | 86 715 160 509 648 638 236 Hop . | . . . . . . . Pick Up 107 | 8 31 3 18 22 17 8 Fast Attach 40 | 6 6 . 8 11 1 8 Attach 36 | . 7 . 4 10 8 7 Detach 10 | . 3 . . 4 1 2 Swap 55 | . 5 6 2 20 15 7 Drop 105 | . 15 5 24 37 15 9 Fire 432 | 13 122 13 45 127 57 55 Melee 16 | . . . . 7 7 2 Ram . | . . . . . . . Kick . | . . . . . . . Crush . | . . . . . . . Escape Stasis 10 | . . . . . 10 . Rewire 1 | . . . . . . 1 Trap . | . . . . . . . Miscellaneous . | . . . . . . . Route ------- -11/Scrapyard -10/Materials (discovered 4 exits: *Mat x2 / [*Min x2]) -10/Mines -9/Materials -8/Materials (discovered 2 exits: [*Fac] / Gar) -8/Garrison (discovered 2 exits: [*Fac] / *Mat) -8/Materials History --------- Turn | Location | Event 2 | -11/Scrapyard | Met Revision 17 26 | -11/Scrapyard | Discovered new exit (range 16) 191 | -11/Scrapyard | Entered Materials 214 | -10/Materials | Discovered new exit (range 16) 307 | -10/Materials | Build established: Mutant 368 | -10/Materials | Discovered new exit (range 15) 1007 | -10/Materials | Discovered new exit (range 14) 1222 | -10/Materials | Core integrity fell below 50% 1717 | -10/Materials | Discovered new exit (range 5) 1870 | -10/Materials | Repaired Assault Rifle 2433 | -10/Materials | Entered Mines 2527 | -10/Mines | Core integrity fell below 20% 2613 | -10/Mines | Learned location of Storage (-8) 2701 | -10/Mines | A weapon hastily lodged in a ceiling crevice suddenly fell to the ground 2842 | -10/Mines | Discovered new exit (range 8) 3000 | -10/Mines | Entered Materials 3000 | -9/Materials | Evolved 2 slots: Propulsion x1, Utility x1 3233 | -9/Materials | Build established: Scavenger-Mutant 3912 | -9/Materials | Discovered new exit (range 14) 3922 | -9/Materials | Build established: Mutant 4523 | -9/Materials | Entered another Materials area 4523 | -8/Materials | Evolved 2 slots: Propulsion x1, Weapon x1 4823 | -8/Materials | Build established: Tank 5276 | -8/Materials | Discovered new exit (range 12) 6123 | -8/Materials | First assault squad dispatched 6267 | -8/Materials | Lost 6 parts (3n3w) 6688 | -8/Materials | Identified exit to Garrison 6688 | -8/Materials | Entered Garrison 6720 | -8/Garrison | Triggered checkpoint 6723 | -8/Garrison | Core integrity fell below 50% 6768 | -8/Garrison | Triggered checkpoint 6831 | -8/Garrison | Garrison Relay disabled 7128 | -8/Garrison | Triggered checkpoint 7228 | -8/Garrison | Build established: Scavenger-Gunner 7258 | -8/Garrison | Discovered new exit (range 11) 7310 | -8/Garrison | Phase Generator disabled 7310 | -8/Garrison | Discovered new exit (range 9) 7364 | -8/Garrison | Triggered checkpoint 7364 | -8/Garrison | Garrison Relay disabled 7462 | -8/Garrison | Triggered checkpoint 7560 | -8/Garrison | Installed Relay Interface Framework 7854 | -8/Garrison | Triggered checkpoint 7902 | -8/Garrison | Garrison Relay disabled 7921 | -8/Garrison | Build established: Scavenger-Tank 7958 | -8/Garrison | Triggered checkpoint 8306 | -8/Garrison | Expanded RIF knowledge: Command Fork 8326 | -8/Garrison | Garrison Relay disabled 8492 | -8/Garrison | Entered Materials 8892 | -8/Materials | First assault squad dispatched 8962 | -8/Materials | Core integrity fell below 20% 9039 | -8/Materials | Lost 5 parts (2n1u2w) 9300 | -8/Materials | Destroyed by G-47 Trooper with Particle Gun Last Messages --------------- 09168_ Jacked Y-45 Defender... >>formatsys_high Rerouting network defenses. Erasing system data. Installing primary routines, ETC: 6. 09170_ Reactivated Defender 3a. 09172_ K-01 Serf cleans the Terminal. 09173_ Defender 3a destroyed. 09179_ K-01 Serf cleans the Terminal. 09181_ Jacked Y-45 Defender... >>reboot_system Initiating full reboot, ETC: 18. 09182_ K-01 Serf cleans the Terminal. 09232_ K-01 Serf collects debris. 09251_ Datajack destroyed. 09258_ Acquired Adv. Targeting Computer. 09278_ Lgt. Treads destroyed. 09292_ ALERT: Significant disruption in Zone 8W, assault force dispatched. 09292_ Acquired Lgt. Treads. 09297_ Acquired Imp. Ion Engine. Map ----- +----------------------------------------------------+ | ?????????????????????????????????????????????????? | | ?????????????????????????????????????????????????? | | ?????????????????????????????????????????????????? | | ?????????????????????????????????????????????????? | | ?????????????????????????????????????????????????? | | ?????????????????????????????????????????????????? | | ?????????????????????????????????????????????????? | | ?????????????????????????????????????????????????? | | ?????????????????????????????????????????????????? | | ?????????????????????????????????????????????????? | | ?????????????????????????????????????????????????? | | ??????????????????????????""?????????########????? | | ??????????????????????????""?????????# """ #????? | | ?????????????????????????? ?????????# "T" ###### | | ??????????????????????????/#?????????# " " #=%!*% | | ?????????????????????????#a#?????????# #%#### | | ?????????????????????????# #?????????# ! #%##?# | | ?????????????????????????# #??????????? #=#??# | | ???????????????????????### ##??????????##+###=#??? | | ??????????????????????? ##???####### ## #??? | | ???????????????????????? *!% =#??? | | ???????????????????????? #????####### *####??? | | ????????????????????????# #######????## ######## | | ????????????????????????# # ####### # "" | | ????????????????????????# # "" # + ""S | | ????????????????????????#@ # "" + ##### "" | | ????????????????????????# # T" # #???# ! | | ????????????????????????# # "" # #???# """ | | ????????????????????????# [%# "" # #???# """ | | ????????????????????????# !+ # #???# """ | | ???????????????#######??# # # #???# """ | | ???????????????# ?# # # #???# | | ???????????????# ?# # # #???######## | | ???????????????# # gg####### #??????????? | | ???????????????# # #??????????? | | ???????????????# " #??????????? | | ???????????????# # #??????????? | | ???????????????# ## ###+####?????????? | | ???????????????# ??# # #?????????? | | ???????????????# ??# + " #?????????? | | ???????????????#######???######## T #?????????? | | ????????????????????????????????# " #?????????? | | ????????????????????????????????# #?????????? | | ????????????????????????????????# #?????????? | | ????????????????????????????????########?????????? | | | | | | | | | | | +----------------------------------------------------+ Best States ------------- Heat Dissipation 42 Coolant Potential 50 Energy Generation 14 Energy Capacity 280 Matter Stores 300 Matter Capacity 300 Sight Range 16 Terrain Scan Density 10 Armor Coverage 600 Evasion (%) 40 Recoil Reduction 4 Kinecelleration 30 Relay Coupler Types 1 Relay Coupler Value 4 Item Schematics ----------------- Lrg. Storage Unit | -10/Materials | Hacked Hrd. Heavy Armor Plating | -8/Materials | Scanalyzed Lgt. Treads | -8/Materials | Scanalyzed System Restoration Module | -8/Materials | Scanalyzed Imp. Signal Interpreter | -8/Materials | Scanalyzed Robot Schematics ------------------ None Fabricated ------------ Nothing Alien Tech Used ----------------- None Achievements -------------- None Challenges ------------ None Game ------ Seed GravitonSuperdenseConstruct Manual? 0 Play Time 01:10:48 Cumulative 98.6 hours Start 2025.01.04 @ 17:56:09 End 2025.01.04 @ 19:26:51 Sessions 2 Manual Loads 0 Difficulty Rogue Special Mode None Game No. 140 Rogue 135 Adventurer 5 Explorer 0 Win Type - Total 3 Types 2/0/0/1/0/0/0/0/0 Lore% 29 Gallery% 59 Achievement% 51 Wizard Run 0 Options --------- Layout 0 ASCII 0 Keyboard 0 Movement Mouse Keybinds 0 Fullscreen 1 Font 24/Smallcaps Map View 76x50 Zoom Use 22% Tactical HUD 1 Map Filters NONE Filters NONE Steam 1 RUN: 3f373cd8-d16d-4e37-b27f-0024c62e7999